bitfinex/quotes_SOLUSD_20240624
["timestamp","ask_amount","ask_price","bid_price","bid_amount"]
[1719246695511,6.5731,126.94,126.86,67.64]
[1719246695711,6.5731,126.94,126.86,458.04]
[1719246696429,6.5731,126.94,126.86,410.74]
[1719246698118,6.5731,126.94,126.86,390.4]
[1719246699918,16.3548,126.93,126.86,390.4]
[1719246700417,16.3548,126.93,126.81,55.1855]
[1719246700727,16.3548,126.93,126.81,47.3]
[1719246701135,16.3548,126.93,126.82,0.34]
[1719246701721,16.3548,126.93,126.83,0.17]
[1719246701930,16.3548,126.93,126.81,67.64]
[1719246702116,16.3548,126.93,126.81,20.17]
[1719246703618,16.3548,126.93,126.82,0.17]
[1719246709744,6.0433,126.9,126.81,410.4]
[1719246709952,16.4305,126.89,126.81,390.4]
[1719246711253,16.4305,126.89,126.79,24.17]
[1719246711254,16.3248,126.86,126.79,24.17]
[1719246711538,16.3248,126.86,126.77,24.17]
[1719246712044,16.3248,126.86,126.77,71.47]
[1719246712943,16.3248,126.86,126.78,0.17]
[1719246713148,16.3248,126.86,126.78,0.34]
[1719246713644,16.3248,126.86,126.79,0.17]
[1719246713837,16.3248,126.86,126.77,67.64]
[1719246715236,16.3248,126.86,126.77,458.04]
[1719246715436,16.3248,126.86,126.77,410.4]
[1719246715622,15.3274,126.84,126.77,390.4]
[1719246716541,15.3274,126.82,126.72,649.5]
[1719246716730,16.6482,126.8,126.72,390.4]
[1719246717049,6.5816,126.79,126.72,390.4]
[1719246718329,15.8472,126.78,126.72,390.4]
[1719246718822,15.8472,126.78,126.66,649.5]
[1719246719025,15.8472,126.78,126.67,20.0]
[1719246719250,6.276,126.77,126.67,20.0]
[1719246719541,6.276,126.75,126.66,390.4]
[1719246720120,6.276,126.75,126.62,3.37116976]
[1719246720546,6.276,126.75,126.62,9.79355778]
[1719246720752,6.276,126.75,126.62,50.67116976]
[1719246722021,21.7281,126.73,126.62,3.37116976]
[1719246722234,21.7281,126.71,126.62,3.37116976]
[1719246723329,15.7981,126.68,126.56,259.1]
[1719246723525,15.7981,126.68,126.54,390.4]
[1719246723952,6.5492,126.69,126.54,390.4]
[1719246723953,15.0962,126.66,126.54,390.4]
[1719246724547,0.17,126.65,126.54,390.4]
[1719246724852,15.0962,126.66,126.54,390.4]
[1719246725222,0.17,126.65,126.54,390.4]
[1719246725424,15.0962,126.66,126.54,390.4]
[1719246725624,15.0962,126.66,126.54,437.7]
[1719246725937,15.0962,126.66,126.55,20.0]
[1719246726539,15.0962,126.66,126.55,67.3]
[1719246727143,15.0962,126.66,126.55,457.7]
[1719246727652,15.0962,126.66,126.56,0.34]
[1719246729857,15.0962,126.66,126.57,47.3]
[1719246730031,15.0962,126.66,126.58,67.64]
[1719246730353,15.0962,126.66,126.59,0.34]
[1719246730564,15.0962,126.66,126.59,0.17]
[1719246730876,15.0962,126.66,126.56,20.0]
[1719246731657,15.0962,126.66,126.57,47.3]
[1719246731848,15.0962,126.66,126.56,27.9013]
[1719246731849,15.0962,126.66,126.58,20.0]
[1719246732265,15.0962,126.66,126.59,0.17]
[1719246732760,15.0962,126.66,126.59,47.64]
[1719246733133,15.0962,126.66,126.59,438.04]
[1719246734947,15.0962,126.66,126.59,458.44593444]
[1719246735264,6.441,126.67,126.61,75.51]
[1719246735456,6.441,126.67,126.62,0.34]
[1719246736146,16.0593,126.7,126.63,47.3]
[1719246736466,6.5575,126.71,126.65,75.51]
[1719246736644,6.5575,126.71,126.66,0.34]
[1719246736849,15.7441,126.74,126.67,47.3]
[1719246737154,15.7441,126.74,126.68,0.34]
[1719246737334,15.7441,126.74,126.69,47.3]
[1719246737640,15.7441,126.86,126.71,47.3]
[1719246737844,15.7441,126.86,126.72,0.34]
[1719246739946,6.3035,126.85,126.72,0.34]
[1719246740155,22.409,126.84,126.72,0.34]
[1719246740341,22.409,126.84,126.71,0.34]
[1719246740342,6.3035,126.83,126.71,0.34]
[1719246740945,6.3035,126.83,126.71,0.17]
[1719246741337,0.17,126.82,126.71,0.17]
[1719246741761,0.34,126.82,126.71,0.17]
[1719246742141,21.3281,126.81,126.68,649.5]
[1719246742348,6.5963,126.8,126.68,649.5]
[1719246742663,6.7663,126.8,126.68,390.4]
[1719246743642,6.7663,126.8,126.69,0.34]
[1719246744474,6.4263,126.8,126.69,0.34]
[1719246744843,6.5684,126.77,126.64,425.01284413]
[1719246745051,0.17,126.76,126.64,390.4]
[1719246745358,6.5684,126.74,126.64,390.4]
[1719246745556,15.9734,126.72,126.6,4.91316]
[1719246746150,15.9734,126.72,126.6,52.21316]
[1719246746663,15.9734,126.72,126.61,0.17]
[1719246746868,15.9734,126.72,126.61,0.34]
[1719246747048,15.9734,126.72,126.6,52.21316]
[1719246748346,15.9734,126.72,126.61,0.34]
[1719246748549,15.9734,126.72,126.6,52.21316]
[1719246750048,15.9734,126.72,126.61,0.17]
[1719246750247,15.9734,126.72,126.65,47.3]
[1719246750475,15.9734,126.72,126.66,0.34]
[1719246750684,15.9734,126.72,126.66,55.5351]
[1719246750972,15.9734,126.72,126.66,47.64]
[1719246751469,15.9734,126.72,126.66,0.34]
[1719246753073,15.9734,126.72,126.62,20.0]
[1719246753394,15.9734,126.72,126.61,437.7]
[1719246754566,15.9734,126.72,126.62,55.197]
[1719246754869,15.9734,126.72,126.63,0.17]
[1719246755169,15.9734,126.72,126.62,47.3]
[1719246755349,15.9734,126.72,126.63,0.17]
[1719246755550,6.5548,126.71,126.63,0.17]
[1719246756370,6.5548,126.71,126.62,0.17]
[1719246757276,6.5548,126.71,126.61,0.17]
[1719246757858,6.5548,126.71,126.62,47.3]
[1719246758055,6.5548,126.71,126.63,0.17]
[1719246758381,6.5548,126.71,126.63,47.64]
[1719246758678,6.5548,126.71,126.63,67.3823]
[1719246758879,6.5548,126.71,126.63,47.64]
[1719246759480,6.5548,126.71,126.63,0.34]
[1719246759657,6.5548,126.71,126.64,0.17]
[1719246759858,6.5548,126.71,126.62,67.64]
[1719246760077,6.5548,126.71,126.62,465.9375]
[1719246760282,6.5548,126.71,126.62,410.74]
[1719246760479,6.5548,126.71,126.62,390.74]
[1719246761179,6.5548,126.71,126.62,390.4]
[1719246761475,16.0277,126.7,126.62,390.4]
[1719246762581,6.342,126.69,126.62,390.4]
[1719246763461,6.342,126.69,126.63,0.17]
[1719246763668,6.342,126.69,126.63,0.34]
[1719246766080,6.342,126.69,126.64,47.3]
[1719246766272,6.342,126.69,126.65,0.34]
[1719246766660,16.0277,126.7,126.65,0.34]
[1719246767366,21.6317,126.73,126.66,83.4049]
[1719246767568,21.6317,126.73,126.68,47.3]
[1719246767770,38.21,126.9,126.7,47.3]
[1719246767771,21.5854,126.77,126.7,47.3]
[1719246768088,21.5854,126.77,126.71,0.34]
[1719246771868,21.5854,126.77,126.72,47.3]
[1719246772188,21.5854,126.77,126.73,0.34]
[1719246773493,21.5854,126.77,126.71,390.4]
[1719246776474,21.5854,126.77,126.72,0.34]
[1719246780580,21.5854,126.77,126.72,0.17]
[1719246780781,21.5854,126.77,126.67,390.4]
[1719246780986,21.5854,126.77,126.68,0.34]
[1719246781189,21.5854,126.77,126.67,390.4]
[1719246782484,6.6265,126.75,126.63,437.7]
[1719246782888,6.6265,126.73,126.63,390.4]
[1719246783222,15.9323,126.72,126.63,390.4]
[1719246783460,6.6265,126.71,126.63,390.4]
[1719246783780,15.7575,126.7,126.63,390.4]
[1719246784304,15.7575,126.7,126.63,437.7]
[1719246784506,15.7575,126.7,126.64,55.1958]
[1719246784806,15.7575,126.7,126.65,0.34]
[1719246787191,15.7575,126.7,126.65,55.5356]
[1719246787390,6.6265,126.71,126.65,55.5356]
[1719246787591,6.6265,126.71,126.65,75.2748]
[1719246787811,6.6265,126.71,126.66,67.3]
[1719246788115,7.883,126.86,126.66,67.3]
[1719246788116,6.1719,126.74,126.68,55.1938]
[1719246788312,6.1719,126.74,126.69,87.2028]
[1719246788494,6.1719,126.74,126.69,457.7]
[1719246788688,15.8157,126.77,126.7,0.34]
[1719246788913,21.9876,126.77,126.7,0.34]
[1719246791428,21.9876,126.77,126.71,47.3]
[1719246791721,21.9876,126.77,126.72,67.64]
[1719246791910,21.9876,126.77,126.73,0.17]
[1719246793416,15.8157,126.77,126.73,0.17]
[1719246793613,15.8157,126.77,126.73,47.47]
[1719246793796,15.8157,126.77,126.74,0.17]
[1719246794302,6.1821,126.83,126.78,47.3]
[1719246794514,15.5121,126.84,126.79,0.34]
[1719246795998,6.1821,126.86,126.79,0.34]
[1719246796203,6.1821,126.86,126.8,47.3]
[1719246796525,15.7751,126.88,126.81,0.34]
[1719246797124,15.7751,126.88,126.82,47.3]
[1719246797299,15.7751,126.88,126.83,0.34]
[1719246797899,15.7751,126.88,126.83,438.04]
[1719246799825,6.3477,126.89,126.83,445.9244]
[1719246800026,6.3477,126.89,126.85,47.3]
[1719246800199,6.3477,126.89,126.86,0.34]
[1719246801413,6.3477,126.89,126.83,390.4]
[1719246804517,15.0246,126.88,126.79,28.21]
[1719246804720,15.0246,126.88,126.77,390.4]
[1719246804930,15.0246,126.88,126.75,696.8]
[1719246805107,15.0246,126.88,126.76,47.3]
[1719246805961,15.0246,126.88,126.78,47.3]
[1719246806232,15.0246,126.88,126.79,0.34]
[1719246806413,15.0246,126.88,126.8,47.3]
[1719246806724,15.0246,126.88,126.81,0.34]
[1719246806924,15.0246,126.88,126.82,0.17]
[1719246807225,15.0246,126.88,126.81,0.17]
[1719246807631,15.0246,126.88,126.8,0.17]
[1719246808905,15.0246,126.88,126.79,0.17]
[1719246809108,6.2475,126.87,126.75,655.81332847]
[1719246809918,21.2952,126.85,126.75,390.4]
[1719246811512,6.1807,126.85,126.75,390.4]
[1719246811834,6.6366,126.83,126.75,390.4]
[1719246812019,15.5937,126.82,126.75,390.4]
[1719246812227,15.5937,126.82,126.7,445.5805]
[1719246812531,15.5937,126.78,126.68,390.4]
[1719246812840,15.5937,126.78,126.66,28.21]
[1719246812841,15.5937,126.78,126.66,437.7]
[1719246813204,15.5937,126.78,126.67,7.894]
[1719246813410,15.5937,126.78,126.69,47.3]
[1719246813635,15.5937,126.78,126.71,55.1919]
[1719246813809,15.5937,126.78,126.72,0.17]
[1719246814012,15.5937,126.78,126.72,0.34]
[1719246814816,15.5937,126.78,126.73,0.17]
[1719246815738,15.5937,126.78,126.66,451.77896711]
[1719246816037,15.5937,126.78,126.67,67.3]
[1719246816218,15.5937,126.78,126.68,0.34]
[1719246816536,15.5937,126.78,126.68,390.74]
[1719246818236,15.5937,126.78,126.68,438.04]
[1719246819330,15.5937,126.78,126.69,55.1932]
[1719246819511,15.5937,126.78,126.7,0.34]
[1719246820322,15.5937,126.78,126.69,20.0]
[1719246820529,15.5937,126.78,126.68,390.4]
[1719246820712,15.2112,126.76,126.68,390.4]
[1719246821140,21.7725,126.75,126.68,390.4]
[1719246822724,21.7725,126.75,126.64,6.48318878]
[1719246822925,21.7725,126.75,126.62,437.41474336]
[1719246822926,21.7725,126.74,126.62,409.77474336]
[1719246823137,21.7725,126.74,126.6,331.694021]
[1719246823138,21.4424,126.74,126.6,654.41316]
[1719246823314,6.2922,126.73,126.61,20.0]
[1719246823513,15.1502,126.72,126.6,654.41316]
[1719246823735,15.1502,126.72,126.6,662.31196]
[1719246823910,15.1502,126.72,126.6,708.20840757]
[1719246824315,15.1502,126.72,126.6,716.10700757]
[1719246824514,15.1502,126.72,126.6,708.20840757]
[1719246825121,16.0849,126.7,126.6,654.41316]
[1719246825326,6.0665,126.69,126.6,654.41316]
[1719246826224,6.0665,126.69,126.6,4.91316]
[1719246827854,6.0665,126.69,126.61,0.34]
[1719246828024,15.652,126.68,126.61,0.34]
[1719246829274,15.652,126.68,126.6,4.91316]
[1719246829542,6.6137,126.67,126.57,390.4]
[1719246830147,15.3897,126.66,126.57,390.4]
[1719246830324,6.5559,126.65,126.54,7.884]
[1719246830524,15.3897,126.64,126.54,7.884]
[1719246831134,15.3897,126.64,126.52,465.3622]
[1719246831437,15.3897,126.64,126.52,471.6838209]
[1719246831757,0.17,126.67,126.52,405.7897]
[1719246831758,22.8037,126.63,126.52,405.7897]
[1719246831956,16.2588,126.62,126.52,390.4]
[1719246832132,6.5449,126.61,126.52,390.4]
[1719246834038,16.3537,126.6,126.52,390.4]
[1719246834239,16.3537,126.6,126.47,52.25615698]
[1719246834240,6.6557,126.59,126.47,406.6588]
[1719246834433,6.6557,126.59,126.47,390.4]
[1719246834752,16.3537,126.58,126.47,390.4]
[1719246835538,6.6557,126.57,126.47,390.4]
[1719246835749,16.3537,126.56,126.43,28.21]
[1719246836337,16.3537,126.56,126.43,34.64597095]
[1719246836529,16.3537,126.56,126.43,81.94597095]
[1719246837131,16.3537,126.56,126.44,0.17]
[1719246838125,6.2787,126.55,126.43,6.43597095]
[1719246838349,6.2787,126.55,126.42,465.91]
[1719246838350,6.2787,126.55,126.42,473.82]
[1719246838651,6.2787,126.55,126.43,20.0]
[1719246839252,6.2787,126.55,126.43,67.3]
[1719246839434,6.2787,126.55,126.43,94.9826]
[1719246839843,6.2787,126.55,126.43,87.0736]
[1719246840055,6.2787,126.55,126.44,0.34]
[1719246840353,6.2787,126.55,126.44,55.5488]
[1719246840564,6.2787,126.55,126.44,445.9488]
[1719246840858,6.2787,126.55,126.44,390.74]
[1719246841066,16.2206,126.54,126.44,390.4]
[1719246841363,16.0886,126.52,126.39,409.72174694]
[1719246841571,6.062,126.51,126.39,396.71353997]
[1719246841747,6.062,126.51,126.39,444.01353997]
[1719246842543,6.062,126.51,126.39,451.92503997]
[1719246842735,6.062,126.51,126.4,8.2512]
[1719246842941,6.062,126.51,126.43,55.2093]
[1719246843160,6.062,126.51,126.44,0.34]
[1719246843366,16.0886,126.52,126.46,7.9076]
[1719246843569,16.0886,126.52,126.47,67.64]
[1719246843758,16.0886,126.52,126.48,7.9058]
[1719246843958,16.0886,126.52,126.49,0.34]
[1719246845978,16.0886,126.52,126.5,0.17]
[1719246846152,16.0886,126.52,126.48,0.34]
[1719246846543,6.3155,126.55,126.48,465.9461]
[1719246846743,6.3155,126.55,126.5,47.3]
[1719246846939,16.2447,126.56,126.52,47.3]
[1719246847272,16.2447,126.56,126.53,0.34]
[1719246847949,6.274,126.58,126.53,0.34]
[1719246849468,15.9634,126.59,126.53,75.543]
[1719246850252,15.9634,126.59,126.53,0.17]
[1719246850673,15.9634,126.59,126.54,47.3]
[1719246850869,15.9634,126.59,126.55,0.17]
[1719246851054,15.9634,126.59,126.53,390.4]
[1719246853475,15.9634,126.59,126.54,0.34]
[1719246854059,15.9634,126.59,126.55,47.3]
[1719246854277,15.9634,126.59,126.56,0.34]
[1719246854463,15.9634,126.59,126.56,0.17]
[1719246854853,15.9634,126.59,126.55,0.17]
[1719246857574,15.4318,126.62,126.56,47.3]
[1719246857879,6.4288,126.64,126.58,47.3]
[1719246858080,6.4288,126.64,126.59,0.34]
[1719246859382,6.4288,126.64,126.56,390.4]
[1719246860676,6.4288,126.64,126.57,0.34]
[1719246860880,15.2101,126.63,126.57,0.34]
[1719246862783,15.2101,126.63,126.57,20.34]
[1719246862990,15.2101,126.63,126.57,67.64]
[1719246863179,15.2101,126.63,126.58,28.21]
[1719246863370,15.2101,126.63,126.59,0.34]
[1719246865382,15.2101,126.63,126.6,0.17]
[1719246867282,6.4288,126.64,126.6,0.17]
[1719246867482,6.4288,126.64,126.59,0.17]
[1719246869690,6.4288,126.64,126.6,47.3]
[1719246869893,6.4288,126.64,126.61,0.34]
[1719246870195,6.197,126.68,126.62,47.3]
[1719246870359,4.060242,126.68,126.63,67.64]
[1719246870689,36.0941,126.84,126.64,55.1963]
[1719246870870,16.0225,126.81,126.65,0.34]
[1719246871065,28.21,126.84,126.65,20.34]
[1719246871384,36.0943,126.84,126.65,20.34]
[1719246871564,64.3043,126.84,126.65,20.34]
[1719246872068,8.2246,126.83,126.65,20.34]
[1719246872269,25.87379046,126.82,126.65,0.34]
[1719246872465,0.34,126.81,126.65,0.34]
[1719246872681,28.21,126.8,126.65,0.34]
[1719246872883,8.2274,126.79,126.65,0.34]
[1719246873276,16.4516,126.78,126.65,0.34]
[1719246873464,6.4243,126.75,126.65,0.34]
[1719246873794,16.6623,126.74,126.65,0.34]
[1719246875195,16.6623,126.74,126.66,0.17]
[1719246875493,16.6623,126.74,126.64,0.34]
[1719246875691,16.6623,126.74,126.64,67.64]
[1719246875990,16.6623,126.74,126.64,47.64]
[1719246876792,16.6623,126.74,126.64,0.34]
[1719246876971,16.6623,126.74,126.65,47.3]
[1719246877295,16.6623,126.74,126.66,0.17]
[1719246878106,16.6623,126.74,126.66,0.34]
[1719246879210,16.6623,126.74,126.67,47.3]
[1719246879385,16.6623,126.74,126.68,0.34]
[1719246880907,6.4243,126.75,126.68,458.04]
[1719246881804,6.4243,126.75,126.68,465.9338]
[1719246882305,15.7177,126.78,126.68,458.04]
[1719246883009,15.7177,126.78,126.68,438.04]
[1719246884805,15.7177,126.78,126.68,390.4]
[1719246885330,15.7177,126.78,126.65,443.9206]
[1719246885493,6.4412,126.77,126.65,390.4]
[1719246886188,15.2758,126.76,126.63,406.88328827]
[1719246886394,6.4412,126.75,126.63,396.62790682]
[1719246887106,15.2276,126.74,126.63,390.4]
[1719246888298,15.2276,126.74,126.64,0.17]
[1719246888504,15.2276,126.74,126.64,0.34]
[1719246890318,15.2276,126.74,126.64,8.2362]
[1719246890612,15.2276,126.74,126.65,47.3]
[1719246890796,15.2276,126.74,126.66,0.34]
[1719246891223,15.2276,126.74,126.66,458.04]
[1719246892515,15.2276,126.74,126.66,485.6719]
[1719246892813,15.2276,126.74,126.66,458.04]
[1719246894411,15.2276,126.74,126.66,465.935]
[1719246894616,15.2276,126.74,126.66,458.04]
[1719246896097,15.2276,126.74,126.66,457.87]
[1719246896295,15.2276,126.74,126.66,437.7]
[1719246897100,15.2276,126.74,126.67,47.3]
[1719246897990,15.2276,126.74,126.68,0.34]
[1719246901035,15.2276,126.74,126.68,0.17]
[1719246901696,15.2276,126.74,126.68,437.7]
[1719246901895,15.2276,126.74,126.69,0.17]
[1719246902216,6.4412,126.75,126.7,47.3]
[1719246902522,6.4412,126.75,126.69,8.0632]
[1719246902523,15.6974,126.77,126.73,47.3]
[1719246902725,6.5797,126.79,126.74,0.34]
[1719246905304,15.6974,126.8,126.74,0.34]
[1719246905806,6.0161,126.82,126.75,47.3]
[1719246906015,16.1156,126.83,126.77,55.1878]
[1719246906216,6.3766,126.85,126.79,47.3]
[1719246906398,6.3766,126.85,126.8,0.34]
[1719246908436,6.3766,126.85,126.79,0.17]
[1719246910431,6.3766,126.85,126.79,0.34]
[1719246913106,22.4953,126.89,126.79,0.34]
[1719246913304,22.4953,126.89,126.8,47.3]
[1719246913508,22.4953,126.89,126.82,47.3]
[1719246913707,22.4953,126.89,126.83,0.34]
[1719246914634,22.4953,126.89,126.84,0.17]
[1719246914838,22.4953,126.89,126.82,0.34]
[1719246915822,22.4953,126.89,126.83,0.17]
[1719246916019,22.4953,126.89,126.81,0.34]
[1719246916221,22.4953,126.89,126.8,47.3]
[1719246916409,22.4953,126.89,126.79,390.4]
[1719246916614,0.17,126.88,126.77,47.3]
[1719246916832,22.8652,126.87,126.75,47.3]
[1719246917020,6.2515,126.85,126.73,390.4]
[1719246917216,0.34,126.86,126.7,9.87685177]
[1719246917217,16.9537,126.84,126.7,390.4]
[1719246917543,6.4215,126.83,126.7,390.4]
[1719246918139,0.17,126.82,126.7,390.4]
[1719246918344,0.17,126.82,126.67,44.60418145]
[1719246918516,0.17,126.82,126.67,50.98192786]
[1719246918924,0.17,126.82,126.67,10.25538145]
[1719246918925,6.2899,126.8,126.67,10.25538145]
[1719246919235,0.34,126.79,126.66,390.4]
[1719246919444,0.34,126.79,126.63,406.93418145]
[1719246919627,0.34,126.79,126.63,454.23418145]
[1719246920145,22.9534,126.78,126.63,400.65538145]
[1719246920436,0.34,126.77,126.63,396.87863541]
[1719246921639,0.34,126.77,126.64,0.34]
[1719246921821,22.9534,126.78,126.64,55.5359]
[1719246922021,22.9534,126.78,126.64,0.34]
[1719246922221,0.34,126.77,126.64,0.34]
[1719246924653,22.9534,126.78,126.65,7.8954]
[1719246924947,22.9534,126.78,126.66,0.34]
[1719246925137,22.9534,126.78,126.67,0.17]
[1719246925444,22.9534,126.78,126.66,0.17]
[1719246925628,22.9534,126.78,126.66,47.3]
[1719246925947,22.9534,126.78,126.67,0.34]
[1719246926124,22.9534,126.78,126.68,0.17]
[1719246927145,0.17,126.77,126.68,0.17]
[1719246927324,0.34,126.77,126.68,0.17]
[1719246927925,22.9534,126.78,126.68,0.17]
[1719246928323,22.9534,126.78,126.67,0.34]
[1719246928533,22.9534,126.78,126.65,7.8956]
[1719246928534,22.9534,126.78,126.66,20.34]
[1719246930022,22.9534,126.78,126.66,67.64]
[1719246930222,22.9534,126.78,126.66,20.34]
[1719246930527,0.34,126.77,126.66,0.34]
[1719246930850,0.34,126.77,126.65,390.4]
[1719246931222,6.0151,126.76,126.65,390.4]
[1719246931559,6.0151,126.76,126.63,6.47863541]
[1719246931746,6.0151,126.76,126.63,7.8969]
[1719246932123,6.0151,126.76,126.64,0.34]
[1719246932952,6.0151,126.76,126.65,0.17]
[1719246933129,6.0151,126.76,126.64,75.1958]
[1719246933332,6.0151,126.76,126.65,0.34]
[1719246934354,6.0151,126.76,126.62,6.49322124]
[1719246934355,16.2279,126.74,126.62,6.49322124]
[1719246934531,6.1342,126.73,126.61,390.4]
[1719246935064,6.1342,126.73,126.61,398.2981]
[1719246935225,6.1342,126.73,126.61,390.4]
[1719246935722,6.1342,126.73,126.62,0.17]
[1719246935923,6.1342,126.73,126.62,0.34]
[1719246936750,6.1342,126.73,126.62,20.084]
[1719246936966,6.1342,126.73,126.63,75.1965]
[1719246937250,6.1342,126.73,126.67,7.894]
[1719246937419,6.1342,126.73,126.68,0.34]
[1719246938029,6.1342,126.73,126.67,0.34]
[1719246938421,6.1342,126.73,126.67,55.5343]
[1719246938627,16.2279,126.74,126.67,55.5343]
[1719246939354,16.2279,126.74,126.67,47.64]
[1719246939541,16.2279,126.74,126.63,30.25538145]
[1719246939855,16.2279,126.74,126.63,20.0]
[1719246940060,16.2279,126.74,126.62,20.0]
[1719246940263,16.2279,126.74,126.62,47.6413]
[1719246940440,16.2279,126.74,126.62,20.0]
[1719246940760,16.2279,126.74,126.61,396.69010972]
[1719246940761,6.1641,126.73,126.61,444.09010972]
[1719246941761,6.1641,126.73,126.61,451.98820972]
[1719246942257,6.1641,126.73,126.62,0.34]
[1719246942458,6.1641,126.73,126.62,55.6375]
[1719246943140,6.1641,126.73,126.62,0.34]
[1719246943345,6.1641,126.73,126.62,20.34]
[1719246943559,6.1641,126.73,126.62,0.34]
[1719246945162,6.1641,126.73,126.62,55.6371]
[1719246945459,6.1641,126.73,126.62,47.74]
[1719246947771,6.1641,126.73,126.62,438.14]
[1719246948236,6.1641,126.73,126.64,7.8963]
[1719246948437,6.1641,126.73,126.65,0.34]
[1719246948861,6.1641,126.73,126.65,0.17]
[1719246949065,6.1641,126.73,126.64,47.74]
[1719246949370,6.1641,126.73,126.65,27.8953]
[1719246949537,6.1641,126.73,126.66,0.34]
[1719246949742,6.1641,126.73,126.64,0.34]
[1719246950342,6.1641,126.73,126.64,55.6362]
[1719246950552,6.1641,126.73,126.64,55.6361]
[1719246950739,6.1641,126.73,126.64,47.74]
[1719246951356,6.1641,126.73,126.64,0.34]
[1719246951758,6.3364,126.71,126.62,390.4]
[1719246952059,15.6898,126.7,126.62,390.4]
[1719246952259,15.6898,126.7,126.61,6.29010972]
[1719246952475,15.6898,126.7,126.59,47.4]
[1719246953168,6.2651,126.69,126.58,649.5]
[1719246953381,6.2651,126.67,126.58,390.4]
[1719246953575,0.34,126.7,126.58,390.4]
[1719246953576,21.6911,126.66,126.58,390.4]
[1719246954862,21.6911,126.66,126.55,4.96258088]
[1719246956252,21.6911,126.66,126.56,0.34]
[1719246959178,21.6911,126.66,126.57,55.3006]
[1719246959348,21.6911,126.66,126.58,0.34]
[1719246959550,21.6911,126.66,126.56,67.74]
[1719246959750,21.6911,126.66,126.56,458.14]
[1719246960364,21.6911,126.66,126.56,410.74]
[1719246960683,21.6911,126.66,126.56,466.0408]
[1719246960985,21.6911,126.66,126.56,458.14]
[1719246961174,21.6911,126.66,126.56,410.74]
[1719246961683,21.6911,126.66,126.56,466.0411]
[1719246961888,21.6911,126.66,126.57,83.5105]
[1719246962066,21.6911,126.66,126.58,75.6398]
[1719246962483,21.6911,126.66,126.59,7.8994]
[1719246962789,21.9599,126.75,126.63,7.8969]
[1719246962993,21.9599,126.75,126.64,8.2363]
[1719246963166,21.9599,126.75,126.65,20.0]
[1719246963361,21.9599,126.75,126.66,0.34]
[1719246964192,21.9599,126.75,126.66,20.34]
[1719246965301,21.9599,126.75,126.66,67.74]
[1719246965678,21.9599,126.75,126.68,7.8938]
[1719246965874,21.9599,126.75,126.69,20.34]
[1719246966265,21.9599,126.75,126.69,75.6331]
[1719246966468,21.9599,126.75,126.7,47.4]
[1719246966773,22.2421,126.84,126.72,7.8912]